bitfinex/quotes_BTCUSD_20240905
["timestamp","ask_amount","ask_price","bid_price","bid_amount"]
[1725552957236,1.909948,56206.0,56205.0,0.01863]
[1725552957652,1.963123,56206.0,56205.0,0.01863]
[1725552958151,1.908948,56206.0,56205.0,0.00963]
[1725552958378,1.909948,56206.0,56205.0,0.00963]
[1725552958856,2.88670187,56206.0,56205.0,0.00163]
[1725552959100,2.88670187,56206.0,56191.0,0.00163]
[1725552959101,1.338327,56192.0,56191.0,0.00163]
[1725552959309,1.60834011,56192.0,56191.0,0.00163]
[1725552959524,2.3670266,56192.0,56191.0,0.00163]
[1725552959753,2.42013664,56192.0,56191.0,0.00163]
[1725552959973,2.45669167,56192.0,56191.0,0.00163]
[1725552960225,0.178015,56175.0,56174.0,0.00162]
[1725552960464,0.890075,56175.0,56174.0,0.00162]
[1725552960694,1.702135,56175.0,56174.0,0.00162]
[1725552961475,2.49221862,56175.0,56174.0,0.00162]
[1725552961695,1.9602586,56175.0,56174.0,0.00162]
[1725552962164,1.9347106,56175.0,56174.0,0.00162]
[1725552962385,1.9447106,56175.0,56174.0,0.00162]
[1725552963252,1.87298333,56175.0,56174.0,0.00262]
[1725552963468,1.88298333,56175.0,56174.0,0.00262]
[1725552963741,1.87398333,56175.0,56174.0,0.00162]
[1725552963949,1.20435333,56175.0,56174.0,0.00162]
[1725552964193,1.55938333,56175.0,56174.0,0.00262]
[1725552964668,1.56838333,56175.0,56174.0,0.00362]
[1725552964886,1.61325492,56175.0,56174.0,0.00362]
[1725552965096,1.25722492,56175.0,56174.0,0.00362]
[1725552965590,1.61325492,56175.0,56174.0,0.00362]
[1725552965759,1.70425492,56175.0,56174.0,0.00262]
[1725552966195,1.71125492,56175.0,56174.0,0.00262]
[1725552967302,1.70425492,56175.0,56174.0,0.00162]
[1725552968203,1.8625106,56175.0,56174.0,0.00162]
[1725552968843,2.2185406,56175.0,56174.0,0.00162]
[1725552969073,2.2970406,56175.0,56174.0,0.00162]
[1725552969281,1.8191616,56169.0,56168.0,0.00162]
[1725552969486,2.5051296,56169.0,56168.0,0.00162]
[1725552970445,2.5051296,56169.0,56164.0,0.00163]
[1725552970446,0.544139,56165.0,56164.0,0.00163]
[1725552970657,0.544139,56165.0,56148.0,0.00162]
[1725552970658,0.534292,56149.0,56148.0,0.00162]
[1725552970870,1.246682,56149.0,56148.0,0.00162]
[1725552971097,1.246682,56149.0,56148.0,0.114172]
[1725552971098,0.278097,56149.0,56148.0,0.114172]
[1725552971310,0.278097,56149.0,56148.0,0.116172]
[1725552971311,0.1,56149.0,56148.0,0.116172]
[1725552971730,0.178095,56150.0,56148.0,0.116172]
[1725552971731,0.534283,56150.0,56149.0,0.006452]
[1725552971954,0.534249,56154.0,56153.0,0.004452]
[1725552972171,1.4634356,56154.0,56153.0,0.004452]
[1725552972629,1.2072676,56154.0,56153.0,0.004452]
[1725552973781,1.2092676,56154.0,56153.0,0.004452]
[1725552973990,0.992412,56154.0,56153.0,0.006452]
[1725552974420,0.992412,56154.0,56153.0,0.142552]
[1725552974421,0.636244,56154.0,56153.0,0.142552]
[1725552975094,0.992407,56154.0,56153.0,0.142552]
[1725552975329,1.34857,56154.0,56153.0,0.004452]
[1725552975555,0.992407,56154.0,56153.0,0.004452]
[1725552976853,1.34857,56154.0,56153.0,0.004452]
[1725552977106,0.992407,56154.0,56153.0,0.004452]
[1725552977321,0.992407,56154.0,56153.0,0.006452]
[1725552977535,0.002,56154.0,56153.0,0.260252]
[1725552977958,0.180081,56154.0,56153.0,0.260252]
[1725552978458,0.892407,56154.0,56153.0,0.260252]
[1725552978681,0.892407,56154.0,56148.0,0.00162]
[1725552978682,0.27292259,56154.0,56151.0,0.004452]
[1725552978920,0.27292259,56154.0,56148.0,0.11952]
[1725552978921,0.890487,56149.0,56148.0,0.00162]
[1725552979152,1.346682,56149.0,56148.0,0.00162]
[1725552979377,1.702877,56149.0,56148.0,0.00162]
[1725552979587,1.810277,56149.0,56148.0,0.00162]
[1725552980060,2.166472,56149.0,56148.0,0.00862]
[1725552980282,1.811277,56149.0,56148.0,0.00862]
[1725552980498,2.167472,56149.0,56148.0,0.00862]
[1725552981148,2.18620058,56149.0,56148.0,0.01762]
[1725552981589,2.18420058,56149.0,56148.0,0.00162]
[1725552982073,2.19020058,56149.0,56148.0,1.1e-07]
[1725552983921,1.37041058,56149.0,56148.0,1.1e-07]
[1725552984083,1.27041058,56149.0,56148.0,0.00445211]
[1725552984303,1.27041058,56149.0,56148.0,0.00645211]
[1725552984762,0.91421558,56149.0,56148.0,0.00645211]
[1725552985196,1.27041058,56149.0,56148.0,0.00445211]
[1725552985431,1.62660558,56149.0,56148.0,1.1e-07]
[1725552985654,1.37041058,56149.0,56148.0,0.00445211]
[1725552986104,1.01421558,56149.0,56148.0,0.00645211]
[1725552986328,0.102,56149.0,56148.0,0.00645211]
[1725552986555,0.356177,56152.0,56149.0,0.006452]
[1725552986556,0.534282,56150.0,56149.0,0.006452]
[1725552986784,0.35616,56155.0,56153.0,0.002]
[1725552987009,0.534216,56157.0,56156.0,0.002]
[1725552987219,0.890375,56156.0,56155.0,0.004452]
[1725552987514,1.246525,56156.0,56155.0,0.004452]
[1725552987721,1.51744759,56156.0,56155.0,0.004452]
[1725552988369,1.246525,56156.0,56155.0,0.004452]
[1725552988577,0.990375,56156.0,56155.0,0.006452]
[1725552988799,0.634225,56156.0,56155.0,0.006452]
[1725552989006,0.634225,56156.0,56155.0,0.140852]
[1725552989724,0.178075,56156.0,56155.0,0.143852]
[1725552989961,0.890375,56156.0,56155.0,0.148852]
[1725552990193,0.890375,56156.0,56155.0,0.147852]
[1725552990863,1.246525,56156.0,56155.0,0.011452]
[1725552991111,1.51744759,56156.0,56155.0,0.011452]
[1725552991613,1.246525,56156.0,56155.0,0.013452]
[1725552991816,1.246525,56156.0,56155.0,0.011452]
[1725552992708,0.890375,56156.0,56155.0,0.011452]
[1725552992933,0.890375,56156.0,56155.0,0.266652]
[1725552993785,1.246525,56156.0,56155.0,0.266652]
[1725552994723,1.246525,56156.0,56155.0,0.008]
[1725552994724,1.97359759,56156.0,56155.0,0.008]
[1725552994965,2.43457219,56156.0,56155.0,0.008]
[1725552995175,2.90812219,56156.0,56155.0,0.008]
[1725552995633,2.55197219,56156.0,56155.0,0.008]
[1725552995872,1.602877,56149.0,56148.0,1.1e-07]
[1725552996071,2.08536962,56149.0,56148.0,1.1e-07]
[1725552997196,2.08636962,56149.0,56148.0,0.00600011]
[1725552997597,2.44256462,56149.0,56148.0,0.00600011]
[1725552997825,2.58516462,56149.0,56148.0,0.00600011]
[1725552998084,2.58516462,56149.0,56148.0,0.00635034]
[1725552998328,3.01360292,56149.0,56148.0,0.00635034]
[1725552998527,3.01360292,56149.0,56133.0,0.003452]
[1725552998528,1.87416859,56136.0,56133.0,0.003452]
[1725552998753,1.97416859,56136.0,56133.0,0.003452]
[1725552999226,1.97416859,56136.0,56134.0,0.005092]
[1725552999227,1.346969,56136.0,56134.0,0.005092]
[1725552999707,1.347969,56136.0,56135.0,0.00764]
[1725552999906,0.279138,56136.0,56135.0,0.013092]
[1725553000114,0.634415,56136.0,56135.0,0.147092]
[1725553000331,1.346969,56136.0,56135.0,0.261292]
[1725553000535,1.347969,56136.0,56135.0,0.268292]
[1725553000983,0.990692,56136.0,56135.0,0.261292]
[1725553001191,0.178138,56136.0,56135.0,0.261292]
[1725553001395,0.535415,56136.0,56135.0,0.269292]
[1725553001638,0.535415,56136.0,56135.0,0.264292]
[1725553001639,0.891692,56136.0,56135.0,0.264292]
[1725553001840,0.891692,56136.0,56135.0,0.271292]
[1725553002061,0.892692,56136.0,56135.0,0.271292]
[1725553002765,0.536415,56136.0,56135.0,0.271292]
[1725553003037,0.892692,56136.0,56135.0,0.271292]
[1725553003267,0.536415,56136.0,56135.0,0.271292]
[1725553003492,0.180138,56136.0,56135.0,0.271292]
[1725553003942,0.892692,56136.0,56135.0,0.022092]
[1725553004383,1.248969,56136.0,56135.0,0.022092]
[1725553005775,1.248969,56136.0,56135.0,0.020092]
[1725553005986,1.248969,56136.0,56135.0,0.022092]
[1725553007647,1.605246,56136.0,56135.0,0.020092]
[1725553009087,1.605246,56136.0,56135.0,0.01664]
[1725553009088,1.705246,56136.0,56135.0,0.01664]
[1725553009346,2.28743521,56136.0,56135.0,0.01664]
[1725553009555,2.64371221,56136.0,56135.0,0.01664]
[1725553010145,3.1458176,56136.0,56135.0,0.01664]
[1725553010334,3.03729033,56136.0,56135.0,0.00164]
[1725553010453,2.64171221,56136.0,56135.0,0.00164]
[1725553010654,2.64171221,56136.0,56135.0,0.00264]
[1725553011085,3.03728106,56136.0,56135.0,0.00264]
[1725553011498,2.64171221,56136.0,56135.0,0.00264]
[1725553011749,2.25101121,56136.0,56135.0,0.00264]
[1725553011982,2.23338342,56136.0,56135.0,0.00264]
[1725553012193,2.12177121,56136.0,56135.0,0.00264]
[1725553012405,2.12977121,56136.0,56135.0,0.00364]
[1725553012616,1.77349421,56136.0,56135.0,0.00364]
[1725553012842,1.346969,56136.0,56135.0,0.00364]
[1725553013085,1.346969,56136.0,56135.0,0.11714]
[1725553013323,1.356969,56136.0,56135.0,0.11714]
[1725553013774,1.352969,56136.0,56135.0,0.11714]
[1725553014206,0.006,56136.0,56135.0,0.257253]
[1725553014664,0.006,56136.0,56135.0,1.00375032]
[1725553014919,0.006,56136.0,56135.0,1.00018796]
[1725553015138,0.006,56136.0,56135.0,0.43276396]
[1725553015387,0.006,56136.0,56135.0,0.256253]
[1725553015388,0.180138,56136.0,56135.0,0.256253]
[1725553015623,0.892692,56136.0,56135.0,0.256253]
[1725553015843,0.890692,56136.0,56135.0,0.256253]
[1725553016084,0.894692,56136.0,56135.0,0.256253]
[1725553016316,0.891692,56136.0,56135.0,0.262253]
[1725553016531,1.247969,56136.0,56135.0,0.262253]
[1725553016776,0.01,56124.0,56117.0,0.00162]
[1725553017036,0.544529,56124.0,56123.0,0.52650515]
[1725553017240,0.366353,56124.0,56117.0,0.179818]
[1725553017476,0.366353,56124.0,56118.0,0.00356348]
[1725553017477,0.178189,56121.0,56118.0,0.00356348]
[1725553017691,0.01,56123.0,56117.0,0.00518358]
[1725553017692,0.18818,56123.0,56117.0,0.00518358]
[1725553017914,0.01,56123.0,56117.0,0.00518358]
[1725553018140,0.178187,56121.0,56117.0,0.00518358]
[1725553018372,0.17819,56120.0,56117.0,0.00162]
[1725553018828,0.17818,56123.0,56117.0,0.00162]
[1725553019060,0.17818,56123.0,56118.0,0.17551096]
[1725553019061,0.178181,56123.0,56118.0,0.17551096]
[1725553019280,0.356335,56127.0,56120.0,0.178188]
[1725553019489,0.001,56121.0,56119.0,0.178192]
[1725553019732,0.001,56121.0,56120.0,0.2527]
[1725553019967,0.535558,56121.0,56120.0,0.2527]
[1725553020207,0.89193,56121.0,56120.0,0.2527]
[1725553020458,0.534558,56121.0,56120.0,0.2527]
[1725553021345,0.178186,56121.0,56120.0,0.2527]
[1725553021845,0.001,56121.0,56120.0,0.2527]
[1725553022553,0.179186,56121.0,56120.0,0.2667]
[1725553022771,0.001,56121.0,56120.0,0.2667]
[1725553022996,0.002,56121.0,56120.0,0.2667]
[1725553023216,0.180186,56121.0,56120.0,0.2667]
[1725553023460,0.546558,56121.0,56120.0,0.1239]
[1725553023699,0.90293,56121.0,56120.0,0.014]
[1725553024185,1.259302,56121.0,56120.0,0.014]
[1725553024894,0.890977,56118.0,56117.0,0.00162]
[1725553025606,0.357372,56121.0,56117.0,0.00162]
[1725553025607,0.001,56121.0,56118.0,0.1416]
[1725553025831,0.001,56121.0,56119.0,0.29937413]
[1725553026116,0.001,56121.0,56120.0,0.014]
[1725553026117,0.535561,56121.0,56120.0,0.014]
[1725553026330,0.900947,56120.0,56119.0,0.1203]
[1725553026563,0.900947,56120.0,56117.0,0.01562]
[1725553026564,0.178195,56118.0,56117.0,0.01562]
[1725553026782,0.900977,56118.0,56117.0,0.00162]
[1725553028851,0.901977,56118.0,56117.0,0.01562]
[1725553029816,1.258368,56118.0,56117.0,0.01562]
[1725553030245,1.259368,56118.0,56117.0,0.01562]
[1725553030471,0.902977,56118.0,56117.0,0.01562]
[1725553030917,0.891977,56118.0,56117.0,0.01562]
[1725553031142,0.891977,56118.0,56117.0,0.16142]
[1725553031394,0.890977,56118.0,56117.0,0.14742]
[1725553031618,0.535586,56118.0,56117.0,0.15542]
[1725553031840,0.001,56118.0,56117.0,0.44333096]
[1725553032056,0.001,56118.0,56117.0,0.97792796]
[1725553032273,0.001,56118.0,56117.0,0.98592796]
[1725553032274,0.003,56118.0,56117.0,0.98592796]
[1725553032501,0.003,56118.0,56117.0,1.63624855]
[1725553032778,0.003,56118.0,56117.0,2.01264655]
[1725553033249,0.002,56118.0,56117.0,2.01264655]
[1725553033481,0.003,56118.0,56117.0,2.01264655]
[1725553033696,0.001,56118.0,56117.0,2.00464655]
[1725553034160,0.178161,56129.0,56125.0,0.178171]
[1725553034419,0.01,56132.0,56117.0,0.30082]
[1725553034658,0.534586,56118.0,56117.0,0.26782]
[1725553034881,0.357192,56121.0,56117.0,0.26782]
[1725553035119,0.535586,56118.0,56117.0,0.28082]
[1725553035383,0.000818,56121.0,56117.0,0.44333096]
[1725553035384,0.17819,56120.0,56117.0,0.44333096]
[1725553035612,0.000818,56121.0,56117.0,0.44333096]
[1725553035613,0.000818,56121.0,56118.0,0.1790745]
[1725553035829,0.178192,56119.0,56118.0,0.17551096]
[1725553036049,0.534577,56119.0,56118.0,0.17551096]
[1725553036272,0.178192,56119.0,56118.0,0.17551096]
[1725553036515,0.900977,56118.0,56117.0,0.00162]
[1725553036757,1.52829059,56118.0,56117.0,0.00162]
[1725553036974,1.257368,56118.0,56117.0,0.00162]
[1725553038134,1.258368,56118.0,56117.0,0.00162]
[1725553039029,1.259368,56118.0,56117.0,0.01062]
[1725553039243,1.249368,56118.0,56117.0,0.01062]
[1725553039463,0.179195,56118.0,56117.0,0.44883096]
[1725553039676,0.536586,56118.0,56117.0,0.44883096]
[1725553040132,1.258368,56118.0,56117.0,0.00162]
[1725553040355,0.901977,56118.0,56117.0,0.00162]
[1725553040582,0.179195,56118.0,56117.0,0.17713096]
[1725553040794,0.178195,56118.0,56117.0,0.17713096]
[1725553041016,0.535586,56118.0,56117.0,0.00162]
[1725553041237,0.891977,56118.0,56117.0,0.00162]
[1725553041456,0.892977,56118.0,56117.0,0.01362]
[1725553043994,1.249368,56118.0,56117.0,0.01362]
[1725553044229,0.892977,56118.0,56117.0,0.01362]
[1725553044440,1.249368,56118.0,56117.0,0.01362]
[1725553044661,0.902977,56118.0,56117.0,0.01362]
[1725553044891,1.259368,56118.0,56117.0,0.01362]
[1725553045864,1.43940448,56118.0,56117.0,0.01362]
[1725553046102,1.79579548,56118.0,56117.0,0.01362]
[1725553046332,1.7373198,56118.0,56117.0,0.01362]
[1725553046557,1.683954,56118.0,56117.0,0.01362]
[1725553047258,1.7373198,56118.0,56117.0,0.01362]
[1725553049066,0.002,56118.0,56117.0,0.30836519]
[1725553049301,0.536586,56118.0,56117.0,0.30836519]
[1725553049746,0.892977,56118.0,56117.0,0.30836519]
[1725553050189,1.259368,56118.0,56117.0,0.13285423]
[1725553050401,0.900977,56118.0,56117.0,0.13285423]
[1725553050627,1.257368,56118.0,56117.0,0.13285423]
[1725553050879,1.257368,56118.0,56117.0,0.01385423]
[1725553052447,1.47435963,56118.0,56117.0,0.01385423]
[1725553053882,1.83075063,56118.0,56117.0,0.01385423]
[1725553054116,1.88411643,56118.0,56117.0,0.01385423]
[1725553055293,2.42954163,56118.0,56117.0,0.01385423]
[1725553055516,2.54234163,56118.0,56117.0,0.01385423]
[1725553055737,2.18595063,56118.0,56117.0,0.01385423]
[1725553056191,2.31549717,56118.0,56117.0,0.01385423]
[1725553056420,2.31063903,56118.0,56117.0,0.01385423]
[1725553056643,2.20384707,56118.0,56117.0,0.01385423]
[1725553056873,1.65063952,56118.0,56117.0,0.01385423]
[1725553057118,1.59725607,56118.0,56117.0,0.01385423]
[1725553057584,0.005,56118.0,56117.0,0.32346519]
[1725553057806,0.011818,56118.0,56117.0,0.44256519]
[1725553058271,0.000818,56118.0,56117.0,0.61976419]
[1725553058510,0.001818,56118.0,56117.0,0.61976419]
[1725553058728,0.000818,56118.0,56117.0,0.97616219]
[1725553058946,0.000818,56118.0,56117.0,0.61976419]
[1725553059164,0.000818,56118.0,56117.0,0.62476419]
[1725553059410,0.001818,56118.0,56117.0,0.97716219]
[1725553059639,0.001818,56118.0,56117.0,1.92994982]
[1725553059888,0.001818,56118.0,56117.0,2.30534782]
[1725553059889,0.000818,56118.0,56117.0,2.30534782]
[1725553060114,0.000818,56118.0,56117.0,2.30734782]
[1725553060569,0.000818,56118.0,56117.0,1.94894982]
[1725553061101,0.001818,56118.0,56117.0,1.95594982]
[1725553061195,0.001818,56118.0,56117.0,1.95794982]
[1725553061416,0.001818,56118.0,56117.0,1.95394982]
[1725553061652,0.002818,56118.0,56117.0,1.39056019]
[1725553061902,0.002818,56118.0,56117.0,0.45356519]
[1725553061903,0.180013,56118.0,56117.0,0.45356519]
[1725553062136,0.181013,56118.0,56117.0,0.31046519]
[1725553062379,0.893795,56118.0,56117.0,0.01685423]
[1725553062598,0.903795,56118.0,56117.0,0.01685423]
[1725553063521,1.260186,56118.0,56117.0,0.01685423]
[1725553063961,1.260186,56118.0,56117.0,0.01685428]
[1725553064186,0.903795,56118.0,56117.0,0.01685428]
[1725553064423,0.902795,56118.0,56117.0,0.00485428]
[1725553064874,0.902795,56118.0,56117.0,0.01385428]
[1725553065116,0.903795,56118.0,56117.0,0.01585428]
[1725553065335,0.002818,56118.0,56117.0,0.01585428]
[1725553065556,0.002818,56118.0,56117.0,0.19492884]
[1725553065781,0.181013,56118.0,56117.0,0.19136524]
[1725553066271,0.002818,56118.0,56117.0,0.19136524]
[1725553066745,0.002818,56118.0,56117.0,0.19492881]
[1725553066972,0.002818,56118.0,56117.0,0.19136524]
[1725553067208,0.181013,56118.0,56117.0,0.19136524]
[1725553067453,0.002818,56118.0,56117.0,0.19136524]
[1725553067678,0.002818,56118.0,56117.0,0.98416224]
[1725553067902,0.002818,56118.0,56117.0,0.98416225]
[1725553068370,0.002818,56118.0,56117.0,0.62776425]
[1725553068660,0.537404,56118.0,56117.0,0.19136525]
[1725553068926,0.893795,56118.0,56117.0,0.01585429]
[1725553069374,0.890977,56118.0,56117.0,0.01585429]
[1725553070290,1.257368,56118.0,56117.0,0.01585429]
[1725553070747,1.864759,56118.0,56117.0,0.01585429]
[1725553070973,1.865577,56118.0,56117.0,0.01585429]
[1725553071692,1.88395132,56118.0,56117.0,0.01585429]
[1725553072274,1.98395132,56118.0,56117.0,0.01585429]
[1725553072734,2.0640525,56118.0,56117.0,0.01585429]
[1725553073439,1.98395132,56118.0,56117.0,0.01585429]
[1725553076228,1.98395132,56118.0,56117.0,0.01485429]
[1725553077891,2.09076503,56118.0,56117.0,0.01485429]
[1725553078560,2.09076503,56118.0,56117.0,0.01285429]
[1725553078798,1.98395132,56118.0,56117.0,0.00085429]
[1725553079024,1.98395132,56118.0,56117.0,0.00185429]
[1725553079519,2.22911396,56118.0,56117.0,0.00085429]
[1725553079735,2.11746846,56118.0,56117.0,0.00185429]
[1725553080223,1.83975092,56118.0,56117.0,0.00185429]
[1725553080453,1.37656032,56118.0,56117.0,0.00185429]
[1725553080898,1.37656032,56118.0,56117.0,0.00285429]
[1725553082932,1.45666221,56118.0,56117.0,0.00285429]
[1725553083132,1.42996051,56118.0,56117.0,0.00285429]
[1725553083561,1.37656032,56118.0,56117.0,0.00285429]
[1725553084045,1.59358513,56118.0,56117.0,0.00285429]
[1725553084281,1.64698532,56118.0,56117.0,0.00285429]
[1725553084489,1.64698553,56118.0,56117.0,0.00285429]
[1725553084917,1.67368702,56118.0,56117.0,0.00285429]
[1725553085130,1.80738702,56118.0,56117.0,0.00285429]
[1725553085340,2.19048423,56118.0,56117.0,0.00285429]
[1725553085589,1.72728513,56118.0,56117.0,0.00285429]
[1725553086025,1.59358513,56118.0,56117.0,0.00285429]
[1725553087019,0.535404,56118.0,56117.0,0.00285429]
[1725553087246,0.000818,56118.0,56117.0,0.61396425]
[1725553087468,0.000818,56118.0,56117.0,1.32876025]
[1725553087692,0.000818,56118.0,56117.0,1.35176025]
[1725553087932,0.000818,56118.0,56117.0,1.70815825]
[1725553088162,0.000818,56118.0,56117.0,1.99919856]
[1725553088626,0.000818,56118.0,56117.0,2.35459656]
[1725553088847,0.000818,56119.0,56118.0,1.525168]
[1725553089065,0.000818,56119.0,56118.0,1.72391326]
[1725553089520,0.000818,56119.0,56118.0,2.08030426]
[1725553090621,0.001818,56119.0,56118.0,2.09330426]
[1725553090843,0.002818,56119.0,56118.0,2.09830427]
[1725553091304,0.36624,56142.0,56118.0,2.09830427]
[1725553091305,0.178124,56141.0,56135.0,0.599082]
[1725553091535,0.000817,56148.0,56144.0,0.178112]
[1725553091810,0.000817,56148.0,56145.0,0.00356182]
[1725553091811,0.178105,56147.0,56145.0,0.00356182]
[1725553092080,0.000817,56148.0,56145.0,0.00023431]
[1725553092320,0.534321,56146.0,56145.0,0.00023431]
[1725553092799,0.900535,56146.0,56145.0,0.00023431]
[1725553093708,0.001817,56148.0,56147.0,0.356207]
[1725553093931,0.001817,56148.0,56147.0,0.35384827]
[1725553094409,0.001817,56148.0,56147.0,0.35384826]
[1725553094888,0.000817,56148.0,56147.0,0.82215526]
[1725553095123,0.000817,56148.0,56147.0,0.82915526]
[1725553095356,0.000817,56148.0,56147.0,0.29484526]
[1725553096527,0.000817,56148.0,56147.0,0.46594826]
[1725553096754,0.000817,56148.0,56147.0,0.47994826]
[1725553097009,0.000817,56148.0,56147.0,0.83615526]
[1725553097487,0.000817,56148.0,56147.0,0.31584526]
[1725553097731,0.000817,56148.0,56147.0,0.49394826]
[1725553097963,0.000817,56148.0,56147.0,0.31584526]
[1725553098196,0.000817,56148.0,56147.0,0.31584525]
[1725553098658,0.178917,56148.0,56147.0,0.31584525]
[1725553099134,0.545118,56148.0,56147.0,0.02823429]
[1725553099355,0.535118,56148.0,56147.0,0.02823429]
[1725553099636,0.891319,56148.0,56147.0,0.02823429]
[1725553101053,1.25752,56148.0,56147.0,0.02823429]
[1725553101951,1.7864603,56148.0,56147.0,0.02823429]
[1725553102465,2.2426613,56148.0,56147.0,0.01423429]
[1725553102930,2.26067836,56148.0,56147.0,0.01423429]
[1725553103153,2.26067836,56148.0,56147.0,0.00023429]
[1725553103845,2.26067836,56148.0,56147.0,0.00623429]
[1725553104080,2.61687936,56148.0,56147.0,0.00623429]
[1725553104548,2.61687936,56148.0,56147.0,0.01123429]
[1725553105078,2.61687936,56148.0,56147.0,2.9e-07]
[1725553105291,2.61687936,56148.0,56117.0,0.00062]
[1725553105292,0.01,56120.0,56117.0,0.00062]
[1725553105512,0.178195,56118.0,56117.0,0.00062]
[1725553105734,0.534586,56118.0,56117.0,0.00062]
[1725553105978,0.890977,56118.0,56117.0,0.00062]
[1725553106447,1.257368,56118.0,56117.0,0.00062]
[1725553107143,1.257368,56118.0,56117.0,0.01362]
[1725553107621,0.900977,56118.0,56117.0,0.01362]
[1725553108048,0.900977,56118.0,56117.0,0.02262]
[1725553108481,1.257368,56118.0,56117.0,0.02262]
[1725553108702,1.613759,56118.0,56117.0,0.02262]
[1725553108932,1.872059,56118.0,56117.0,0.02262]
[1725553110043,2.08913558,56118.0,56117.0,0.02262]
[1725553111576,2.10728193,56118.0,56117.0,0.02262]
[1725553112014,1.99628193,56118.0,56117.0,0.02262]
[1725553112241,1.84898193,56118.0,56117.0,0.02262]
[1725553113149,1.49259093,56118.0,56117.0,0.02262]
[1725553113377,1.257368,56118.0,56117.0,0.02262]
[1725553114124,1.47444458,56118.0,56117.0,0.02262]
[1725553114560,1.49283261,56118.0,56117.0,0.02262]
[1725553115691,1.47444458,56118.0,56117.0,0.02262]
[1725553121702,1.257368,56118.0,56117.0,0.02262]
[1725553126507,1.257368,56118.0,56117.0,0.27722]
[1725553126508,0.534586,56118.0,56117.0,0.27722]
[1725553126964,0.890977,56118.0,56117.0,0.27722]
[1725553127430,0.534586,56118.0,56117.0,0.27722]
[1725553130795,0.178195,56118.0,56117.0,0.27722]
[1725553131647,0.534586,56118.0,56117.0,0.27722]
[1725553132379,0.001,56120.0,56117.0,0.27722]
[1725553132585,0.001,56120.0,56118.0,0.3572684]
[1725553132818,0.001,56120.0,56119.0,0.178192]
[1725553133045,0.001,56120.0,56119.0,0.17907443]
[1725553133268,0.001,56120.0,56119.0,0.35370296]
[1725553133480,0.001,56120.0,56119.0,0.60490296]
[1725553133906,0.001,56120.0,56119.0,0.42671096]
[1725553134747,0.001,56120.0,56119.0,0.61390296]
[1725553134984,0.001,56120.0,56119.0,0.97028796]
[1725553135198,0.001,56120.0,56119.0,1.31767296]
[1725553135438,0.001,56120.0,56119.0,1.54574954]
[1725553135674,0.001,56120.0,56119.0,1.92513454]
[1725553135954,0.001,56120.0,56119.0,1.94513454]
[1725553136884,0.001,56120.0,56119.0,1.93413454]
[1725553137788,0.001,56120.0,56119.0,1.94713454]
[1725553138211,0.001,56120.0,56119.0,1.93413454]
[1725553138697,0.001,56120.0,56119.0,1.94813454]
[1725553140341,0.001,56120.0,56119.0,2.30451954]
[1725553140568,0.001,56120.0,56119.0,2.30651954]
[1725553141447,0.001,56120.0,56119.0,1.95013454]
[1725553141677,0.001,56120.0,56119.0,0.44071096]
[1725553141902,0.179189,56120.0,56119.0,0.44071096]
[1725553142123,0.535568,56120.0,56119.0,0.44071096]
[1725553142349,0.001,56120.0,56119.0,0.44071096]
[1725553142877,0.179189,56120.0,56119.0,0.44071096]
[1725553143109,0.891947,56120.0,56119.0,0.30501096]
[1725553143320,0.535568,56120.0,56119.0,0.30501096]
[1725553145582,0.534568,56120.0,56119.0,0.014]
[1725553145792,0.890947,56120.0,56119.0,0.014]
[1725553146472,0.534568,56120.0,56119.0,0.014]
[1725553146943,0.890947,56120.0,56119.0,0.014]
[1725553147167,0.534568,56120.0,56119.0,0.014]
[1725553150517,0.178189,56120.0,56119.0,0.014]
[1725553150729,0.890947,56120.0,56119.0,0.014]
[1725553150934,1.512726,56120.0,56119.0,0.014]
[1725553152241,1.92224495,56120.0,56119.0,0.014]
[1725553152486,1.969105,56120.0,56119.0,0.014]
[1725553152707,2.325484,56120.0,56119.0,0.014]
[1725553153168,1.603759,56118.0,56117.0,0.01362]
[1725553153395,1.82083558,56118.0,56117.0,0.01362]
[1725553153837,1.87421849,56118.0,56117.0,0.01362]
[1725553154331,1.87421847,56118.0,56117.0,0.01362]
[1725553154552,1.82083558,56118.0,56117.0,0.01362]
[1725553154774,1.87421459,56118.0,56117.0,0.01362]
[1725553154990,1.88421459,56118.0,56117.0,0.01362]
[1725553155219,1.83083558,56118.0,56117.0,0.01362]
[1725553155692,2.01091694,56118.0,56117.0,0.01362]
[1725553155910,2.28271548,56118.0,56117.0,0.02162]
[1725553157086,2.17643558,56118.0,56117.0,0.02162]
[1725553158445,1.713759,56118.0,56117.0,0.02162]
[1725553158673,1.357368,56118.0,56117.0,0.02162]
[1725553158896,1.713759,56118.0,56117.0,0.02162]
[1725553159393,1.967859,56118.0,56117.0,0.02162]
[1725553159833,1.967859,56118.0,56117.0,0.00862]
[1725553160061,1.968859,56118.0,56117.0,0.01762]
[1725553160748,2.40530871,56118.0,56117.0,0.01762]
[1725553160983,2.32525,56118.0,56117.0,0.01762]
[1725553161685,2.43199495,56118.0,56117.0,0.01762]
[1725553161903,2.04891603,56118.0,56117.0,0.01762]
[1725553163478,1.968859,56118.0,56117.0,0.01762]
[1725553165995,2.147055,56118.0,56117.0,0.01762]
[1725553166228,2.32525,56118.0,56117.0,0.01762]
[1725553166443,2.681641,56118.0,56117.0,0.01762]
[1725553166688,2.45866548,56118.0,56117.0,0.01762]
[1725553166908,2.32525,56118.0,56117.0,0.01762]
[1725553167395,2.45866548,56118.0,56117.0,0.01762]
[1725553167635,2.32425,56118.0,56117.0,0.00862]
[1725553168322,2.32425,56118.0,56117.0,0.00162]
[1725553168323,2.33025,56118.0,56117.0,0.00162]
[1725553169821,0.536615,56115.0,56114.0,0.00164]
[1725553170055,2.53993158,56115.0,56114.0,0.00164]
[1725553170514,2.67123909,56115.0,56114.0,0.00164]
[1725553171412,2.67823909,56115.0,56114.0,0.00264]